Workbook

Sheet Client Output
B2: Current Plan vs. Tax-Free Retirement Plan: | E2: ='T-Free Inputs'!C5 -> Jamie Rossi
B3: Client Inputs/Assumptions | D3: Comparison Metrics | E3: Current Plan | F3: Tax-Free Plan
B4: Current Age | C4: 47 | D4: Acct Value @ Retirement (before tax) | E4: =Calcs!D2 -> 465266.0512 | F4: ='T-Free Inputs'!C3 -> 390747 | AA4: 0 | AB4: 0.025
B5: Retirement Age | C5: 67 | D5: Tax Liability | E5: =IF(C$7="Qualified",E4*C11,0) -> 0 | F5: 0 | AA5: 0.005 | AB5: =AB4+0.1% -> 0.026
B6: Monthly Saving Rate | C6: 1000 | D6: After-Tax Bal @ Retirement | E6: =+E4-E5 -> 465266.0512 | F6: =F4 -> 390747 | AA6: 0.01 | AB6: =AB5+0.1% -> 0.027
B7: Account Type | C7: Roth | D7: Income Drawdown Rate | E7: 0.04 | F7: =F8/F6 -> 0.1156553985 | AA7: 0.015 | AB7: 0.028
B8: Match (if applicable) | C8: 0 | D8: Annual Income Draw (After-Tax) | E8: =IF(C7="taxable",(E6*E7)-Calcs!F2,(E6*E7)) -> 18610.64205 | F8: ='T-Free Inputs'!C4 -> 45192 | AA8: 0.02 | AB8: 0.029
B9: Inflate Contributions? | C9: 0.015 | D9: Comparison Summary | E9: Favored Plan | F9: Advantage | AA9: 0.025 | AB9: 0.03
B10: Growth Rate (Accumulation) | C10: 0.065 | D10: Annual After-Tax Income Advantage | E10: =IF(F8>E8,"Tax-Free","Current") -> Tax-Free | F10: =F8-E8 -> 26581.35795 | AA10: 0.03 | AB10: 0.031
B11: Tax Rate | C11: 0.2 | D11: Income Advantage Multiple (percent) | E11: =E10 -> Tax-Free | F11: =F8/E8 -> 2.428288067 | AA11: 0.035 | AB11: 0.032
B12: Fee/Commission Drain | C12: 0.015 | D12: Lifestyle Advantage (to age 90) | E12: =E11 -> Tax-Free | F12: =F10*(90-C5) -> 611371.2329 | AA12: 0.04 | AB12: 0.033
AA13: 0.045 | AB13: 0.034
AA14: 0.05 | AB14: 0.035
AB15: 0.036
AB16: 0.037
AB17: 0.038
AB18: 0.039
AB19: 0.04
AB20: 0.041
AB21: 0.042
AB22: 0.043
AB23: 0.044
AB24: 0.045
AB25: 0.046
AB26: 0.047
AB27: 0.048
AB28: 0.049
AB29: 0.05
AB30: 0.051
AB31: 0.052
AB32: 0.053
AB33: 0.054
AB34: 0.055
AB35: 0.056
AB36: 0.057
AB37: 0.058
AB38: 0.059
AB39: 0.06
AB40: 0.061
N41: Qualified | AB41: 0.062
N42: Taxable | AB42: 0.063
N43: Roth | AB43: 0.064
AB44: 0.065
AB45: 0.066
AB46: 0.067
AB47: 0.068
AB48: 0.069
AB49: 0.07
AB50: 0.071
AB51: 0.072
AB52: 0.073
AB53: 0.074
AB54: 0.075
AB55: 0.076
AB56: 0.077
AB57: 0.078
AB58: 0.079
AB59: 0.08
AB60: 0.081
AB61: 0.082
AB62: 0.083
AB63: 0.084
AB64: 0.085
AB65: 0.086
AB66: 0.087
AB67: 0.088
AB68: 0.089
AB69: 0.09
AB70: =AB69+0.1% -> 0.091
AB71: 0.092
AB72: 0.093
AB73: 0.094
AB74: 0.095
AB75: 0.096
AB76: 0.097
AB77: 0.098
AB78: 0.099
AB79: 0.1
AB80: 0.101
AB81: 0.102
AB82: 0.103
AB83: 0.104
AB84: 0.105
AB85: 0.106
AB86: 0.107
AB87: 0.108
AB88: 0.109
AB89: 0.11
AB90: 0.111
AB91: 0.112
AB92: 0.113
AB93: 0.114
AB94: 0.115
AB95: 0.116
AB96: 0.117
AB97: 0.118
AB98: 0.119
AB99: 0.12

Sheet T-Free Inputs
B2: Values from IUL Illustration | C2: Dollar Value
B3: Accumulation Value - Year before Income Starts | C3: 390747
B4: Annual Income Draw | C4: 45192
B5: Client Name | C5: Jamie Rossi

Sheet Calcs
C1: Match Ratio | D1: ='Client Output'!C8/'Client Output'!C6 -> 0 | E1: Earnings | F1: Taxes
C2: Bal @Retire | D2: =LOOKUP((('Client Output'!C5-'Client Output'!C4)*12),Calcs!C6:C605,K6:K605) -> 465266.0512 | E2: =D2*('Client Output'!C10/12) -> 2520.191111 | F2: =(E2)*('Client Output'!C11) -> 504.0382222
C5: Month | D5: Beg Bal | E5: Adds | F5: Match | G5: Earn Bal | H5: Earnings | I5: Fees | J5: Taxes | K5: End Bal
B6: 0 | C6: 1 | D6: 0 | E6: ='Client Output'!C$6 -> 1000 | F6: =E6*D$1 -> 0 | G6: =D6+E6+F6 -> 1000 | H6: =G6*('Client Output'!C$10/12) -> 5.416666667 | I6: =-(G6+H6)*('Client Output'!C$12/12) -> -1.256770833 | J6: =-IF('Client Output'!C$7="Taxable",(H6+I6)*'Client Output'!C$11,0) -> 0 | K6: =G6+H6+I6+J6 -> 1004.159896
C7: =C6+1 -> 2 | D7: =K6 -> 1004.159896 | E7: ='Client Output'!C$6 -> 1000 | F7: =E7*D$1 -> 0 | G7: =D7+E7+F7 -> 2004.159896 | H7: =G7*('Client Output'!C$10/12) -> 10.8558661 | I7: =-(G7+H7)*('Client Output'!C$12/12) -> -2.518769702 | J7: =-IF('Client Output'!C$7="Taxable",(H7+I7)*'Client Output'!C$11,0) -> 0 | K7: =G7+H7+I7+J7 -> 2012.496992
C8: =C7+1 -> 3 | D8: =K7 -> 2012.496992 | E8: ='Client Output'!C$6 -> 1000 | F8: 0 | G8: =D8+E8+F8 -> 3012.496992 | H8: =G8*('Client Output'!C$10/12) -> 16.31769204 | I8: =-(G8+H8)*('Client Output'!C$12/12) -> -3.786018355 | J8: =-IF('Client Output'!C$7="Taxable",(H8+I8)*'Client Output'!C$11,0) -> 0 | K8: =G8+H8+I8+J8 -> 3025.028666
C9: 4 | D9: 3025.028666 | E9: ='Client Output'!C$6 -> 1000 | F9: 0 | G9: 4025.028666 | H9: =G9*('Client Output'!C$10/12) -> 21.80223861 | I9: =-(G9+H9)*('Client Output'!C$12/12) -> -5.058538631 | J9: =-IF('Client Output'!C$7="Taxable",(H9+I9)*'Client Output'!C$11,0) -> 0 | K9: 4041.772366
C10: 5 | D10: 4041.772366 | E10: ='Client Output'!C$6 -> 1000 | F10: 0 | G10: 5041.772366 | H10: =G10*('Client Output'!C$10/12) -> 27.30960032 | I10: =-(G10+H10)*('Client Output'!C$12/12) -> -6.336352458 | J10: =-IF('Client Output'!C$7="Taxable",(H10+I10)*'Client Output'!C$11,0) -> 0 | K10: 5062.745614
C11: 6 | D11: 5062.745614 | E11: ='Client Output'!C$6 -> 1000 | F11: 0 | G11: 6062.745614 | H11: =G11*('Client Output'!C$10/12) -> 32.83987207 | I11: =-(G11+H11)*('Client Output'!C$12/12) -> -7.619481857 | J11: =-IF('Client Output'!C$7="Taxable",(H11+I11)*'Client Output'!C$11,0) -> 0 | K11: 6087.966004
C12: 7 | D12: 6087.966004 | E12: ='Client Output'!C$6 -> 1000 | F12: 0 | G12: 7087.966004 | H12: =G12*('Client Output'!C$10/12) -> 38.39314919 | I12: =-(G12+H12)*('Client Output'!C$12/12) -> -8.907948941 | J12: =-IF('Client Output'!C$7="Taxable",(H12+I12)*'Client Output'!C$11,0) -> 0 | K12: 7117.451204
C13: 8 | D13: 7117.451204 | E13: ='Client Output'!C$6 -> 1000 | F13: 0 | G13: 8117.451204 | H13: =G13*('Client Output'!C$10/12) -> 43.96952736 | I13: =-(G13+H13)*('Client Output'!C$12/12) -> -10.20177591 | J13: =-IF('Client Output'!C$7="Taxable",(H13+I13)*'Client Output'!C$11,0) -> 0 | K13: 8151.218956
C14: 9 | D14: 8151.218956 | E14: ='Client Output'!C$6 -> 1000 | F14: 0 | G14: 9151.218956 | H14: =G14*('Client Output'!C$10/12) -> 49.56910268 | I14: =-(G14+H14)*('Client Output'!C$12/12) -> -11.50098507 | J14: =-IF('Client Output'!C$7="Taxable",(H14+I14)*'Client Output'!C$11,0) -> 0 | K14: 9189.287073
C15: 10 | D15: 9189.287073 | E15: ='Client Output'!C$6 -> 1000 | F15: 0 | G15: 10189.28707 | H15: =G15*('Client Output'!C$10/12) -> 55.19197165 | I15: =-(G15+H15)*('Client Output'!C$12/12) -> -12.80559881 | J15: =-IF('Client Output'!C$7="Taxable",(H15+I15)*'Client Output'!C$11,0) -> 0 | K15: 10231.67345
C16: 11 | D16: 10231.67345 | E16: ='Client Output'!C$6 -> 1000 | F16: 0 | G16: 11231.67345 | H16: =G16*('Client Output'!C$10/12) -> 60.83823117 | I16: =-(G16+H16)*('Client Output'!C$12/12) -> -14.1156396 | J16: =-IF('Client Output'!C$7="Taxable",(H16+I16)*'Client Output'!C$11,0) -> 0 | K16: 11278.39604
C17: 12 | D17: 11278.39604 | E17: ='Client Output'!C$6 -> 1000 | F17: 0 | G17: 12278.39604 | H17: =G17*('Client Output'!C$10/12) -> 66.50797854 | I17: =-(G17+H17)*('Client Output'!C$12/12) -> -15.43113002 | J17: =-IF('Client Output'!C$7="Taxable",(H17+I17)*'Client Output'!C$11,0) -> 0 | K17: 12329.47289
B18: ='Client Output'!C$9 -> 0.015 | C18: 13 | D18: =K17 -> 12329.47289 | E18: =((E$17*(1+B$18))) -> 1015 | F18: 0 | G18: =D18+E18+F18 -> 13344.47289 | H18: =G18*('Client Output'!C$10/12) -> 72.28256147 | I18: =-(G18+H18)*('Client Output'!C$12/12) -> -16.77094431 | J18: =-IF('Client Output'!C$7="Taxable",(H18+I18)*'Client Output'!C$11,0) -> 0 | K18: =G18+H18+I18+J18 -> 13399.9845
C19: 14 | D19: 13399.9845 | E19: =((E$17*(1+B$18))) -> 1015 | F19: 0 | G19: =D19+E19+F19 -> 14414.9845 | H19: =G19*('Client Output'!C$10/12) -> 78.08116606 | I19: =-(G19+H19)*('Client Output'!C$12/12) -> -18.11633209 | J19: =-IF('Client Output'!C$7="Taxable",(H19+I19)*'Client Output'!C$11,0) -> 0 | K19: =G19+H19+I19+J19 -> 14474.94934
C20: 15 | D20: 14474.94934 | E20: 1015 | F20: 0 | G20: 15489.94934 | H20: =G20*('Client Output'!C$10/12) -> 83.90389224 | I20: =-(G20+H20)*('Client Output'!C$12/12) -> -19.46731654 | J20: =-IF('Client Output'!C$7="Taxable",(H20+I20)*'Client Output'!C$11,0) -> 0 | K20: 15554.38591
C21: 16 | D21: 15554.38591 | E21: 1015 | F21: 0 | G21: 16569.38591 | H21: =G21*('Client Output'!C$10/12) -> 89.75084036 | I21: =-(G21+H21)*('Client Output'!C$12/12) -> -20.82392094 | J21: =-IF('Client Output'!C$7="Taxable",(H21+I21)*'Client Output'!C$11,0) -> 0 | K21: 16638.31283
C22: 17 | D22: 16638.31283 | E22: 1015 | F22: 0 | G22: 17653.31283 | H22: =G22*('Client Output'!C$10/12) -> 95.62211118 | I22: =-(G22+H22)*('Client Output'!C$12/12) -> -22.18616868 | J22: =-IF('Client Output'!C$7="Taxable",(H22+I22)*'Client Output'!C$11,0) -> 0 | K22: 17726.74877
C23: 18 | D23: 17726.74877 | E23: 1015 | F23: 0 | G23: 18741.74877 | H23: =G23*('Client Output'!C$10/12) -> 101.5178059 | I23: =-(G23+H23)*('Client Output'!C$12/12) -> -23.55408323 | J23: =-IF('Client Output'!C$7="Taxable",(H23+I23)*'Client Output'!C$11,0) -> 0 | K23: 18819.7125
C24: 19 | D24: 18819.7125 | E24: 1015 | F24: 0 | G24: 19834.7125 | H24: =G24*('Client Output'!C$10/12) -> 107.438026 | I24: =-(G24+H24)*('Client Output'!C$12/12) -> -24.92768815 | J24: =-IF('Client Output'!C$7="Taxable",(H24+I24)*'Client Output'!C$11,0) -> 0 | K24: 19917.22284
C25: 20 | D25: 19917.22284 | E25: 1015 | F25: 0 | G25: 20932.22284 | H25: =G25*('Client Output'!C$10/12) -> 113.3828737 | I25: =-(G25+H25)*('Client Output'!C$12/12) -> -26.30700714 | J25: =-IF('Client Output'!C$7="Taxable",(H25+I25)*'Client Output'!C$11,0) -> 0 | K25: 21019.2987
C26: 21 | D26: 21019.2987 | E26: 1015 | F26: 0 | G26: 22034.2987 | H26: =G26*('Client Output'!C$10/12) -> 119.3524513 | I26: =-(G26+H26)*('Client Output'!C$12/12) -> -27.69206394 | J26: =-IF('Client Output'!C$7="Taxable",(H26+I26)*'Client Output'!C$11,0) -> 0 | K26: 22125.95909
C27: 22 | D27: 22125.95909 | E27: 1015 | F27: 0 | G27: 23140.95909 | H27: =G27*('Client Output'!C$10/12) -> 125.3468617 | I27: =-(G27+H27)*('Client Output'!C$12/12) -> -29.08288244 | J27: =-IF('Client Output'!C$7="Taxable",(H27+I27)*'Client Output'!C$11,0) -> 0 | K27: 23237.22307
C28: 23 | D28: 23237.22307 | E28: 1015 | F28: 0 | G28: 24252.22307 | H28: =G28*('Client Output'!C$10/12) -> 131.3662083 | I28: =-(G28+H28)*('Client Output'!C$12/12) -> -30.4794866 | J28: =-IF('Client Output'!C$7="Taxable",(H28+I28)*'Client Output'!C$11,0) -> 0 | K28: 24353.10979
C29: 24 | D29: 24353.10979 | E29: 1015 | F29: 0 | G29: 25368.10979 | H29: =G29*('Client Output'!C$10/12) -> 137.4105947 | I29: =-(G29+H29)*('Client Output'!C$12/12) -> -31.88190048 | J29: =-IF('Client Output'!C$7="Taxable",(H29+I29)*'Client Output'!C$11,0) -> 0 | K29: 25473.63848
B30: ='Client Output'!C$9 -> 0.015 | C30: 25 | D30: 25473.63848 | E30: =((E$29*(1+B$30))) -> 1030.225 | F30: 0 | G30: 26503.86348 | H30: =G30*('Client Output'!C$10/12) -> 143.5625939 | I30: =-(G30+H30)*('Client Output'!C$12/12) -> -33.3092826 | J30: =-IF('Client Output'!C$7="Taxable",(H30+I30)*'Client Output'!C$11,0) -> 0 | K30: 26614.1168
C31: 26 | D31: 26614.1168 | E31: =((E$29*(1+B$30))) -> 1030.225 | F31: 0 | G31: 27644.3418 | H31: =G31*('Client Output'!C$10/12) -> 149.7401847 | I31: =-(G31+H31)*('Client Output'!C$12/12) -> -34.74260248 | J31: =-IF('Client Output'!C$7="Taxable",(H31+I31)*'Client Output'!C$11,0) -> 0 | K31: 27759.33938
C32: 27 | D32: 27759.33938 | E32: 1030.225 | F32: 0 | G32: 28789.56438 | H32: =G32*('Client Output'!C$10/12) -> 155.9434737 | I32: =-(G32+H32)*('Client Output'!C$12/12) -> -36.18188481 | J32: =-IF('Client Output'!C$7="Taxable",(H32+I32)*'Client Output'!C$11,0) -> 0 | K32: 28909.32597
C33: 28 | D33: 28909.32597 | E33: 1030.225 | F33: 0 | G33: 29939.55097 | H33: =G33*('Client Output'!C$10/12) -> 162.1725677 | I33: =-(G33+H33)*('Client Output'!C$12/12) -> -37.62715442 | J33: =-IF('Client Output'!C$7="Taxable",(H33+I33)*'Client Output'!C$11,0) -> 0 | K33: 30064.09638
C34: 29 | D34: 30064.09638 | E34: 1030.225 | F34: 0 | G34: 31094.32138 | H34: =G34*('Client Output'!C$10/12) -> 168.4275741 | I34: =-(G34+H34)*('Client Output'!C$12/12) -> -39.07843619 | J34: =-IF('Client Output'!C$7="Taxable",(H34+I34)*'Client Output'!C$11,0) -> 0 | K34: 31223.67052
C35: 30 | D35: 31223.67052 | E35: 1030.225 | F35: 0 | G35: 32253.89552 | H35: =G35*('Client Output'!C$10/12) -> 174.7086007 | I35: =-(G35+H35)*('Client Output'!C$12/12) -> -40.53575515 | J35: =-IF('Client Output'!C$7="Taxable",(H35+I35)*'Client Output'!C$11,0) -> 0 | K35: 32388.06836
C36: 31 | D36: 32388.06836 | E36: 1030.225 | F36: 0 | G36: 33418.29336 | H36: =G36*('Client Output'!C$10/12) -> 181.0157557 | I36: =-(G36+H36)*('Client Output'!C$12/12) -> -41.9991364 | J36: =-IF('Client Output'!C$7="Taxable",(H36+I36)*'Client Output'!C$11,0) -> 0 | K36: 33557.30998
C37: 32 | D37: 33557.30998 | E37: 1030.225 | F37: 0 | G37: 34587.53498 | H37: =G37*('Client Output'!C$10/12) -> 187.3491478 | I37: =-(G37+H37)*('Client Output'!C$12/12) -> -43.46860516 | J37: =-IF('Client Output'!C$7="Taxable",(H37+I37)*'Client Output'!C$11,0) -> 0 | K37: 34731.41553
C38: 33 | D38: 34731.41553 | E38: 1030.225 | F38: 0 | G38: 35761.64053 | H38: =G38*('Client Output'!C$10/12) -> 193.7088862 | I38: =-(G38+H38)*('Client Output'!C$12/12) -> -44.94418677 | J38: =-IF('Client Output'!C$7="Taxable",(H38+I38)*'Client Output'!C$11,0) -> 0 | K38: 35910.40523
C39: 34 | D39: 35910.40523 | E39: 1030.225 | F39: 0 | G39: 36940.63023 | H39: =G39*('Client Output'!C$10/12) -> 200.0950804 | I39: =-(G39+H39)*('Client Output'!C$12/12) -> -46.42590663 | J39: =-IF('Client Output'!C$7="Taxable",(H39+I39)*'Client Output'!C$11,0) -> 0 | K39: 37094.2994
C40: 35 | D40: 37094.2994 | E40: 1030.225 | F40: 0 | G40: 38124.5244 | H40: =G40*('Client Output'!C$10/12) -> 206.5078405 | I40: =-(G40+H40)*('Client Output'!C$12/12) -> -47.9137903 | J40: =-IF('Client Output'!C$7="Taxable",(H40+I40)*'Client Output'!C$11,0) -> 0 | K40: 38283.11845
C41: 36 | D41: 38283.11845 | E41: 1030.225 | F41: 0 | G41: 39313.34345 | H41: =G41*('Client Output'!C$10/12) -> 212.947277 | I41: =-(G41+H41)*('Client Output'!C$12/12) -> -49.40786341 | J41: =-IF('Client Output'!C$7="Taxable",(H41+I41)*'Client Output'!C$11,0) -> 0 | K41: 39476.88286
B42: ='Client Output'!C$9 -> 0.015 | C42: 37 | D42: 39476.88286 | E42: =((E$41*(1+B$42))) -> 1045.678375 | F42: 0 | G42: 40522.56124 | H42: =G42*('Client Output'!C$10/12) -> 219.4972067 | I42: =-(G42+H42)*('Client Output'!C$12/12) -> -50.92757306 | J42: =-IF('Client Output'!C$7="Taxable",(H42+I42)*'Client Output'!C$11,0) -> 0 | K42: 40691.13087
C43: 38 | D43: 40691.13087 | E43: =((E$41*(1+B$42))) -> 1045.678375 | F43: 0 | G43: 41736.80925 | H43: =G43*('Client Output'!C$10/12) -> 226.0743834 | I43: =-(G43+H43)*('Client Output'!C$12/12) -> -52.45360454 | J43: =-IF('Client Output'!C$7="Taxable",(H43+I43)*'Client Output'!C$11,0) -> 0 | K43: 41910.43003
C44: 39 | D44: 41910.43003 | E44: 1045.678375 | F44: 0 | G44: 42956.1084 | H44: =G44*('Client Output'!C$10/12) -> 232.6789205 | I44: =-(G44+H44)*('Client Output'!C$12/12) -> -53.98598415 | J44: =-IF('Client Output'!C$7="Taxable",(H44+I44)*'Client Output'!C$11,0) -> 0 | K44: 43134.80134
C45: 40 | D45: 43134.80134 | E45: 1045.678375 | F45: 0 | G45: 44180.47971 | H45: =G45*('Client Output'!C$10/12) -> 239.3109318 | I45: =-(G45+H45)*('Client Output'!C$12/12) -> -55.5247383 | J45: =-IF('Client Output'!C$7="Taxable",(H45+I45)*'Client Output'!C$11,0) -> 0 | K45: 44364.26591
C46: 41 | D46: 44364.26591 | E46: 1045.678375 | F46: 0 | G46: 45409.94428 | H46: =G46*('Client Output'!C$10/12) -> 245.9705315 | I46: =-(G46+H46)*('Client Output'!C$12/12) -> -57.06989351 | J46: =-IF('Client Output'!C$7="Taxable",(H46+I46)*'Client Output'!C$11,0) -> 0 | K46: 45598.84492
C47: 42 | D47: 45598.84492 | E47: 1045.678375 | F47: 0 | G47: 46644.52329 | H47: =G47*('Client Output'!C$10/12) -> 252.6578345 | I47: =-(G47+H47)*('Client Output'!C$12/12) -> -58.62147641 | J47: =-IF('Client Output'!C$7="Taxable",(H47+I47)*'Client Output'!C$11,0) -> 0 | K47: 46838.55965
C48: 43 | D48: 46838.55965 | E48: 1045.678375 | F48: 0 | G48: 47884.23803 | H48: =G48*('Client Output'!C$10/12) -> 259.372956 | I48: =-(G48+H48)*('Client Output'!C$12/12) -> -60.17951373 | J48: =-IF('Client Output'!C$7="Taxable",(H48+I48)*'Client Output'!C$11,0) -> 0 | K48: 48083.43147
C49: 44 | D49: 48083.43147 | E49: 1045.678375 | F49: 0 | G49: 49129.10984 | H49: =G49*('Client Output'!C$10/12) -> 266.1160117 | I49: =-(G49+H49)*('Client Output'!C$12/12) -> -61.74403232 | J49: =-IF('Client Output'!C$7="Taxable",(H49+I49)*'Client Output'!C$11,0) -> 0 | K49: 49333.48182
C50: 45 | D50: 49333.48182 | E50: 1045.678375 | F50: 0 | G50: 50379.1602 | H50: =G50*('Client Output'!C$10/12) -> 272.8871177 | I50: =-(G50+H50)*('Client Output'!C$12/12) -> -63.31505914 | J50: =-IF('Client Output'!C$7="Taxable",(H50+I50)*'Client Output'!C$11,0) -> 0 | K50: 50588.73226
C51: 46 | D51: 50588.73226 | E51: 1045.678375 | F51: 0 | G51: 51634.41063 | H51: =G51*('Client Output'!C$10/12) -> 279.6863909 | I51: =-(G51+H51)*('Client Output'!C$12/12) -> -64.89262128 | J51: =-IF('Client Output'!C$7="Taxable",(H51+I51)*'Client Output'!C$11,0) -> 0 | K51: 51849.2044
C52: 47 | D52: 51849.2044 | E52: 1045.678375 | F52: 0 | G52: 52894.88278 | H52: =G52*('Client Output'!C$10/12) -> 286.5139484 | I52: =-(G52+H52)*('Client Output'!C$12/12) -> -66.47674591 | J52: =-IF('Client Output'!C$7="Taxable",(H52+I52)*'Client Output'!C$11,0) -> 0 | K52: 53114.91998
C53: 48 | D53: 53114.91998 | E53: 1045.678375 | F53: 0 | G53: 54160.59835 | H53: =G53*('Client Output'!C$10/12) -> 293.3699077 | I53: =-(G53+H53)*('Client Output'!C$12/12) -> -68.06746033 | J53: =-IF('Client Output'!C$7="Taxable",(H53+I53)*'Client Output'!C$11,0) -> 0 | K53: 54385.9008
B54: ='Client Output'!C$9 -> 0.015 | C54: 49 | D54: 54385.9008 | E54: =((E$53*(1+B$54))) -> 1061.363551 | F54: 0 | G54: 55447.26435 | H54: =G54*('Client Output'!C$10/12) -> 300.3393486 | I54: =-(G54+H54)*('Client Output'!C$12/12) -> -69.68450463 | J54: =-IF('Client Output'!C$7="Taxable",(H54+I54)*'Client Output'!C$11,0) -> 0 | K54: 55677.9192
C55: 50 | D55: 55677.9192 | E55: =((E$53*(1+B$54))) -> 1061.363551 | F55: 0 | G55: 56739.28275 | H55: =G55*('Client Output'!C$10/12) -> 307.3377815 | I55: =-(G55+H55)*('Client Output'!C$12/12) -> -71.30827566 | J55: =-IF('Client Output'!C$7="Taxable",(H55+I55)*'Client Output'!C$11,0) -> 0 | K55: 56975.31225
C56: 51 | D56: 56975.31225 | E56: 1061.363551 | F56: 0 | G56: 58036.6758 | H56: =G56*('Client Output'!C$10/12) -> 314.3653273 | I56: =-(G56+H56)*('Client Output'!C$12/12) -> -72.93880141 | J56: =-IF('Client Output'!C$7="Taxable",(H56+I56)*'Client Output'!C$11,0) -> 0 | K56: 58278.10233
C57: 52 | D57: 58278.10233 | E57: 1061.363551 | F57: 0 | G57: 59339.46588 | H57: =G57*('Client Output'!C$10/12) -> 321.4221068 | I57: =-(G57+H57)*('Client Output'!C$12/12) -> -74.57610998 | J57: =-IF('Client Output'!C$7="Taxable",(H57+I57)*'Client Output'!C$11,0) -> 0 | K57: 59586.31188
C58: 53 | D58: 59586.31188 | E58: 1061.363551 | F58: 0 | G58: 60647.67543 | H58: =G58*('Client Output'!C$10/12) -> 328.5082419 | I58: =-(G58+H58)*('Client Output'!C$12/12) -> -76.22022959 | J58: =-IF('Client Output'!C$7="Taxable",(H58+I58)*'Client Output'!C$11,0) -> 0 | K58: 60899.96344
C59: 54 | D59: 60899.96344 | E59: 1061.363551 | F59: 0 | G59: 61961.32699 | H59: =G59*('Client Output'!C$10/12) -> 335.6238545 | I59: =-(G59+H59)*('Client Output'!C$12/12) -> -77.87118856 | J59: =-IF('Client Output'!C$7="Taxable",(H59+I59)*'Client Output'!C$11,0) -> 0 | K59: 62219.07966
C60: 55 | D60: 62219.07966 | E60: 1061.363551 | F60: 0 | G60: 63280.44321 | H60: =G60*('Client Output'!C$10/12) -> 342.7690674 | I60: =-(G60+H60)*('Client Output'!C$12/12) -> -79.52901534 | J60: =-IF('Client Output'!C$7="Taxable",(H60+I60)*'Client Output'!C$11,0) -> 0 | K60: 63543.68326
C61: 56 | D61: 63543.68326 | E61: 1061.363551 | F61: 0 | G61: 64605.04681 | H61: =G61*('Client Output'!C$10/12) -> 349.9440035 | I61: =-(G61+H61)*('Client Output'!C$12/12) -> -81.19373852 | J61: =-IF('Client Output'!C$7="Taxable",(H61+I61)*'Client Output'!C$11,0) -> 0 | K61: 64873.79707
C62: 57 | D62: 64873.79707 | E62: 1061.363551 | F62: 0 | G62: 65935.16062 | H62: =G62*('Client Output'!C$10/12) -> 357.1487867 | I62: =-(G62+H62)*('Client Output'!C$12/12) -> -82.86538676 | J62: =-IF('Client Output'!C$7="Taxable",(H62+I62)*'Client Output'!C$11,0) -> 0 | K62: 66209.44402
C63: 58 | D63: 66209.44402 | E63: 1061.363551 | F63: 0 | G63: 67270.80758 | H63: =G63*('Client Output'!C$10/12) -> 364.383541 | I63: =-(G63+H63)*('Client Output'!C$12/12) -> -84.5439889 | J63: =-IF('Client Output'!C$7="Taxable",(H63+I63)*'Client Output'!C$11,0) -> 0 | K63: 67550.64713
C64: 59 | D64: 67550.64713 | E64: 1061.363551 | F64: 0 | G64: 68612.01068 | H64: =G64*('Client Output'!C$10/12) -> 371.6483912 | I64: =-(G64+H64)*('Client Output'!C$12/12) -> -86.22957384 | J64: =-IF('Client Output'!C$7="Taxable",(H64+I64)*'Client Output'!C$11,0) -> 0 | K64: 68897.4295
C65: 60 | D65: 68897.4295 | E65: 1061.363551 | F65: 0 | G65: 69958.79305 | H65: =G65*('Client Output'!C$10/12) -> 378.9434623 | I65: =-(G65+H65)*('Client Output'!C$12/12) -> -87.92217064 | J65: =-IF('Client Output'!C$7="Taxable",(H65+I65)*'Client Output'!C$11,0) -> 0 | K65: 70249.81434
B66: ='Client Output'!C$9 -> 0.015 | C66: 61 | D66: 70249.81434 | E66: =((E$65*(1+B$66))) -> 1077.284004 | F66: 0 | G66: 71327.09834 | H66: =G66*('Client Output'!C$10/12) -> 386.355116 | I66: =-(G66+H66)*('Client Output'!C$12/12) -> -89.64181682 | J66: =-IF('Client Output'!C$7="Taxable",(H66+I66)*'Client Output'!C$11,0) -> 0 | K66: 71623.81164
C67: 62 | D67: 71623.81164 | E67: =((E$65*(1+B$66))) -> 1077.284004 | F67: 0 | G67: 72701.09564 | H67: =G67*('Client Output'!C$10/12) -> 393.7976014 | I67: =-(G67+H67)*('Client Output'!C$12/12) -> -91.36861656 | J67: =-IF('Client Output'!C$7="Taxable",(H67+I67)*'Client Output'!C$11,0) -> 0 | K67: 73003.52463
C68: 63 | D68: 73003.52463 | E68: 1077.284004 | F68: 0 | G68: 74080.80863 | H68: =G68*('Client Output'!C$10/12) -> 401.2710468 | I68: =-(G68+H68)*('Client Output'!C$12/12) -> -93.1025996 | J68: =-IF('Client Output'!C$7="Taxable",(H68+I68)*'Client Output'!C$11,0) -> 0 | K68: 74388.97708
C69: 64 | D69: 74388.97708 | E69: 1077.284004 | F69: 0 | G69: 75466.26108 | H69: =G69*('Client Output'!C$10/12) -> 408.7755809 | I69: =-(G69+H69)*('Client Output'!C$12/12) -> -94.84379583 | J69: =-IF('Client Output'!C$7="Taxable",(H69+I69)*'Client Output'!C$11,0) -> 0 | K69: 75780.19287
C70: 65 | D70: 75780.19287 | E70: 1077.284004 | F70: 0 | G70: 76857.47687 | H70: =G70*('Client Output'!C$10/12) -> 416.3113331 | I70: =-(G70+H70)*('Client Output'!C$12/12) -> -96.59223526 | J70: =-IF('Client Output'!C$7="Taxable",(H70+I70)*'Client Output'!C$11,0) -> 0 | K70: 77177.19597
C71: 66 | D71: 77177.19597 | E71: 1077.284004 | F71: =E71*D$1 -> 0 | G71: 78254.47997 | H71: =G71*('Client Output'!C$10/12) -> 423.8784332 | I71: =-(G71+H71)*('Client Output'!C$12/12) -> -98.34794801 | J71: =-IF('Client Output'!C$7="Taxable",(H71+I71)*'Client Output'!C$11,0) -> 0 | K71: 78580.01046
C72: =C71+1 -> 67 | D72: 78580.01046 | E72: 1077.284004 | F72: 0 | G72: 79657.29446 | H72: =G72*('Client Output'!C$10/12) -> 431.4770117 | I72: =-(G72+H72)*('Client Output'!C$12/12) -> -100.1109643 | J72: =-IF('Client Output'!C$7="Taxable",(H72+I72)*'Client Output'!C$11,0) -> 0 | K72: 79988.66051
C73: 68 | D73: 79988.66051 | E73: 1077.284004 | F73: 0 | G73: 81065.94452 | H73: =G73*('Client Output'!C$10/12) -> 439.1071995 | I73: =-(G73+H73)*('Client Output'!C$12/12) -> -101.8813146 | J73: =-IF('Client Output'!C$7="Taxable",(H73+I73)*'Client Output'!C$11,0) -> 0 | K73: 81403.1704
C74: 69 | D74: 81403.1704 | E74: 1077.284004 | F74: 0 | G74: 82480.4544 | H74: =G74*('Client Output'!C$10/12) -> 446.769128 | I74: =-(G74+H74)*('Client Output'!C$12/12) -> -103.6590294 | J74: =-IF('Client Output'!C$7="Taxable",(H74+I74)*'Client Output'!C$11,0) -> 0 | K74: 82823.5645
C75: 70 | D75: 82823.5645 | E75: 1077.284004 | F75: 0 | G75: 83900.84851 | H75: =G75*('Client Output'!C$10/12) -> 454.4629294 | I75: =-(G75+H75)*('Client Output'!C$12/12) -> -105.4441393 | J75: =-IF('Client Output'!C$7="Taxable",(H75+I75)*'Client Output'!C$11,0) -> 0 | K75: 84249.8673
C76: 71 | D76: 84249.8673 | E76: 1077.284004 | F76: 0 | G76: 85327.1513 | H76: =G76*('Client Output'!C$10/12) -> 462.1887362 | I76: =-(G76+H76)*('Client Output'!C$12/12) -> -107.236675 | J76: =-IF('Client Output'!C$7="Taxable",(H76+I76)*'Client Output'!C$11,0) -> 0 | K76: 85682.10336
C77: 72 | D77: 85682.10336 | E77: 1077.284004 | F77: 0 | G77: 86759.38737 | H77: =G77*('Client Output'!C$10/12) -> 469.9466816 | I77: =-(G77+H77)*('Client Output'!C$12/12) -> -109.0366676 | J77: =-IF('Client Output'!C$7="Taxable",(H77+I77)*'Client Output'!C$11,0) -> 0 | K77: 87120.29738
B78: ='Client Output'!C$9 -> 0.015 | C78: 73 | D78: 87120.29738 | E78: =((E$77*(1+B$78))) -> 1093.443264 | F78: 0 | G78: 88213.74064 | H78: =G78*('Client Output'!C$10/12) -> 477.8244285 | I78: =-(G78+H78)*('Client Output'!C$12/12) -> -110.8644563 | J78: =-IF('Client Output'!C$7="Taxable",(H78+I78)*'Client Output'!C$11,0) -> 0 | K78: 88580.70062
C79: 74 | D79: 88580.70062 | E79: =((E$77*(1+B$78))) -> 1093.443264 | F79: 0 | G79: 89674.14388 | H79: =G79*('Client Output'!C$10/12) -> 485.734946 | I79: =-(G79+H79)*('Client Output'!C$12/12) -> -112.6998485 | J79: =-IF('Client Output'!C$7="Taxable",(H79+I79)*'Client Output'!C$11,0) -> 0 | K79: 90047.17898
C80: 75 | D80: 90047.17898 | E80: 1093.443264 | F80: 0 | G80: 91140.62224 | H80: =G80*('Client Output'!C$10/12) -> 493.6783705 | I80: =-(G80+H80)*('Client Output'!C$12/12) -> -114.5428758 | J80: =-IF('Client Output'!C$7="Taxable",(H80+I80)*'Client Output'!C$11,0) -> 0 | K80: 91519.75774
C81: 76 | D81: 91519.75774 | E81: 1093.443264 | F81: 0 | G81: 92613.201 | H81: =G81*('Client Output'!C$10/12) -> 501.6548387 | I81: =-(G81+H81)*('Client Output'!C$12/12) -> -116.3935698 | J81: =-IF('Client Output'!C$7="Taxable",(H81+I81)*'Client Output'!C$11,0) -> 0 | K81: 92998.46227
C82: 77 | D82: =K81 -> 92998.46227 | E82: 1093.443264 | F82: 0 | G82: 94091.90553 | H82: =G82*('Client Output'!C$10/12) -> 509.6644883 | I82: =-(G82+H82)*('Client Output'!C$12/12) -> -118.2519625 | J82: =-IF('Client Output'!C$7="Taxable",(H82+I82)*'Client Output'!C$11,0) -> 0 | K82: 94483.31806
C83: 78 | D83: 94483.31806 | E83: 1093.443264 | F83: 0 | G83: =D83+E83+F83 -> 95576.76132 | H83: =G83*('Client Output'!C$10/12) -> 517.7074572 | I83: =-(G83+H83)*('Client Output'!C$12/12) -> -120.118086 | J83: =-IF('Client Output'!C$7="Taxable",(H83+I83)*'Client Output'!C$11,0) -> 0 | K83: =G83+H83+I83+J83 -> 95974.35069
C84: 79 | D84: 95974.35069 | E84: 1093.443264 | F84: 0 | G84: 97067.79396 | H84: =G84*('Client Output'!C$10/12) -> 525.7838839 | I84: =-(G84+H84)*('Client Output'!C$12/12) -> -121.9919723 | J84: =-IF('Client Output'!C$7="Taxable",(H84+I84)*'Client Output'!C$11,0) -> 0 | K84: 97471.58587
C85: 80 | D85: 97471.58587 | E85: 1093.443264 | F85: 0 | G85: 98565.02913 | H85: =G85*('Client Output'!C$10/12) -> 533.8939078 | I85: =-(G85+H85)*('Client Output'!C$12/12) -> -123.8736538 | J85: =-IF('Client Output'!C$7="Taxable",(H85+I85)*'Client Output'!C$11,0) -> 0 | K85: 98975.04939
C86: 81 | D86: 98975.04939 | E86: 1093.443264 | F86: 0 | G86: 100068.4927 | H86: =G86*('Client Output'!C$10/12) -> 542.0376685 | I86: =-(G86+H86)*('Client Output'!C$12/12) -> -125.7631629 | J86: =-IF('Client Output'!C$7="Taxable",(H86+I86)*'Client Output'!C$11,0) -> 0 | K86: 100484.7672
C87: 82 | D87: 100484.7672 | E87: 1093.443264 | F87: 0 | G87: 101578.2104 | H87: =G87*('Client Output'!C$10/12) -> 550.2153064 | I87: =-(G87+H87)*('Client Output'!C$12/12) -> -127.6605322 | J87: =-IF('Client Output'!C$7="Taxable",(H87+I87)*'Client Output'!C$11,0) -> 0 | K87: 102000.7652
C88: 83 | D88: 102000.7652 | E88: 1093.443264 | F88: 0 | G88: 103094.2085 | H88: =G88*('Client Output'!C$10/12) -> 558.4269625 | I88: =-(G88+H88)*('Client Output'!C$12/12) -> -129.5657943 | J88: =-IF('Client Output'!C$7="Taxable",(H88+I88)*'Client Output'!C$11,0) -> 0 | K88: 103523.0696
C89: 84 | D89: 103523.0696 | E89: 1093.443264 | F89: 0 | G89: 104616.5129 | H89: =G89*('Client Output'!C$10/12) -> 566.6727782 | I89: =-(G89+H89)*('Client Output'!C$12/12) -> -131.4789821 | J89: =-IF('Client Output'!C$7="Taxable",(H89+I89)*'Client Output'!C$11,0) -> 0 | K89: 105051.7067
B90: ='Client Output'!C$9 -> 0.015 | C90: 85 | D90: 105051.7067 | E90: =((E$89*(1+B$90))) -> 1109.844913 | F90: 0 | G90: 106161.5516 | H90: =G90*('Client Output'!C$10/12) -> 575.0417378 | I90: =-(G90+H90)*('Client Output'!C$12/12) -> -133.4207417 | J90: =-IF('Client Output'!C$7="Taxable",(H90+I90)*'Client Output'!C$11,0) -> 0 | K90: 106603.1726
C91: 86 | D91: 106603.1726 | E91: =((E$89*(1+B$90))) -> 1109.844913 | F91: 0 | G91: 107713.0175 | H91: =G91*('Client Output'!C$10/12) -> 583.4455115 | I91: =-(G91+H91)*('Client Output'!C$12/12) -> -135.3705788 | J91: =-IF('Client Output'!C$7="Taxable",(H91+I91)*'Client Output'!C$11,0) -> 0 | K91: 108161.0924
C92: 87 | D92: 108161.0924 | E92: 1109.844913 | F92: 0 | G92: 109270.9374 | H92: =G92*('Client Output'!C$10/12) -> 591.884244 | I92: =-(G92+H92)*('Client Output'!C$12/12) -> -137.328527 | J92: =-IF('Client Output'!C$7="Taxable",(H92+I92)*'Client Output'!C$11,0) -> 0 | K92: 109725.4931
C93: 88 | D93: 109725.4931 | E93: 1109.844913 | F93: 0 | G93: 110835.338 | H93: =G93*('Client Output'!C$10/12) -> 600.3580807 | I93: =-(G93+H93)*('Client Output'!C$12/12) -> -139.2946201 | J93: =-IF('Client Output'!C$7="Taxable",(H93+I93)*'Client Output'!C$11,0) -> 0 | K93: 111296.4014
C94: 89 | D94: 111296.4014 | E94: 1109.844913 | F94: 0 | G94: 112406.2464 | H94: =G94*('Client Output'!C$10/12) -> 608.8671678 | I94: =-(G94+H94)*('Client Output'!C$12/12) -> -141.2688919 | J94: =-IF('Client Output'!C$7="Taxable",(H94+I94)*'Client Output'!C$11,0) -> 0 | K94: 112873.8446
C95: 90 | D95: 112873.8446 | E95: 1109.844913 | F95: 0 | G95: 113983.6895 | H95: =G95*('Client Output'!C$10/12) -> 617.4116517 | I95: =-(G95+H95)*('Client Output'!C$12/12) -> -143.2513765 | J95: =-IF('Client Output'!C$7="Taxable",(H95+I95)*'Client Output'!C$11,0) -> 0 | K95: 114457.8498
C96: 91 | D96: 114457.8498 | E96: 1109.844913 | F96: 0 | G96: 115567.6947 | H96: =G96*('Client Output'!C$10/12) -> 625.9916798 | I96: =-(G96+H96)*('Client Output'!C$12/12) -> -145.242108 | J96: =-IF('Client Output'!C$7="Taxable",(H96+I96)*'Client Output'!C$11,0) -> 0 | K96: 116048.4443
C97: 92 | D97: 116048.4443 | E97: 1109.844913 | F97: 0 | G97: 117158.2892 | H97: =G97*('Client Output'!C$10/12) -> 634.6073999 | I97: =-(G97+H97)*('Client Output'!C$12/12) -> -147.2411208 | J97: =-IF('Client Output'!C$7="Taxable",(H97+I97)*'Client Output'!C$11,0) -> 0 | K97: 117645.6555
C98: 93 | D98: 117645.6555 | E98: 1109.844913 | F98: 0 | G98: 118755.5004 | H98: =G98*('Client Output'!C$10/12) -> 643.2589606 | I98: =-(G98+H98)*('Client Output'!C$12/12) -> -149.2484492 | J98: =-IF('Client Output'!C$7="Taxable",(H98+I98)*'Client Output'!C$11,0) -> 0 | K98: 119249.5109
C99: 94 | D99: 119249.5109 | E99: 1109.844913 | F99: 0 | G99: 120359.3558 | H99: =G99*('Client Output'!C$10/12) -> 651.9465108 | I99: =-(G99+H99)*('Client Output'!C$12/12) -> -151.2641279 | J99: =-IF('Client Output'!C$7="Taxable",(H99+I99)*'Client Output'!C$11,0) -> 0 | K99: 120860.0382
C100: 95 | D100: 120860.0382 | E100: 1109.844913 | F100: 0 | G100: 121969.8831 | H100: =G100*('Client Output'!C$10/12) -> 660.6702003 | I100: =-(G100+H100)*('Client Output'!C$12/12) -> -153.2881917 | J100: =-IF('Client Output'!C$7="Taxable",(H100+I100)*'Client Output'!C$11,0) -> 0 | K100: 122477.2651
C101: 96 | D101: 122477.2651 | E101: 1109.844913 | F101: 0 | G101: 123587.1101 | H101: =G101*('Client Output'!C$10/12) -> 669.4301795 | I101: =-(G101+H101)*('Client Output'!C$12/12) -> -155.3206753 | J101: =-IF('Client Output'!C$7="Taxable",(H101+I101)*'Client Output'!C$11,0) -> 0 | K101: 124101.2196
B102: ='Client Output'!C$9 -> 0.015 | C102: 97 | D102: 124101.2196 | E102: =((E$101*(1+B$102))) -> 1126.492587 | F102: 0 | G102: 125227.7121 | H102: =G102*('Client Output'!C$10/12) -> 678.3167741 | I102: =-(G102+H102)*('Client Output'!C$12/12) -> -157.3825361 | J102: =-IF('Client Output'!C$7="Taxable",(H102+I102)*'Client Output'!C$11,0) -> 0 | K102: 125748.6464
C103: 98 | D103: 125748.6464 | E103: =((E$101*(1+B$102))) -> 1126.492587 | F103: 0 | G103: 126875.139 | H103: =G103*('Client Output'!C$10/12) -> 687.2403361 | I103: =-(G103+H103)*('Client Output'!C$12/12) -> -159.4529741 | J103: =-IF('Client Output'!C$7="Taxable",(H103+I103)*'Client Output'!C$11,0) -> 0 | K103: 127402.9263
C104: 99 | D104: 127402.9263 | E104: 1126.492587 | F104: 0 | G104: 128529.4189 | H104: =G104*('Client Output'!C$10/12) -> 696.2010191 | I104: =-(G104+H104)*('Client Output'!C$12/12) -> -161.5320249 | J104: =-IF('Client Output'!C$7="Taxable",(H104+I104)*'Client Output'!C$11,0) -> 0 | K104: 129064.0879
C105: 100 | D105: 129064.0879 | E105: 1126.492587 | F105: 0 | G105: 130190.5805 | H105: =G105*('Client Output'!C$10/12) -> 705.1989777 | I105: =-(G105+H105)*('Client Output'!C$12/12) -> -163.6197243 | J105: =-IF('Client Output'!C$7="Taxable",(H105+I105)*'Client Output'!C$11,0) -> 0 | K105: 130732.1598
C106: 101 | D106: 130732.1598 | E106: 1126.492587 | F106: 0 | G106: 131858.6523 | H106: =G106*('Client Output'!C$10/12) -> 714.2343668 | I106: =-(G106+H106)*('Client Output'!C$12/12) -> -165.7161084 | J106: =-IF('Client Output'!C$7="Taxable",(H106+I106)*'Client Output'!C$11,0) -> 0 | K106: 132407.1706
C107: 102 | D107: 132407.1706 | E107: 1126.492587 | F107: 0 | G107: 133533.6632 | H107: =G107*('Client Output'!C$10/12) -> 723.3073422 | I107: =-(G107+H107)*('Client Output'!C$12/12) -> -167.8212132 | J107: =-IF('Client Output'!C$7="Taxable",(H107+I107)*'Client Output'!C$11,0) -> 0 | K107: 134089.1493
C108: 103 | D108: 134089.1493 | E108: 1126.492587 | F108: 0 | G108: 135215.6419 | H108: =G108*('Client Output'!C$10/12) -> 732.4180603 | I108: =-(G108+H108)*('Client Output'!C$12/12) -> -169.9350749 | J108: =-IF('Client Output'!C$7="Taxable",(H108+I108)*'Client Output'!C$11,0) -> 0 | K108: 135778.1249
C109: 104 | D109: 135778.1249 | E109: 1126.492587 | F109: 0 | G109: 136904.6175 | H109: =G109*('Client Output'!C$10/12) -> 741.566678 | I109: =-(G109+H109)*('Client Output'!C$12/12) -> -172.0577302 | J109: =-IF('Client Output'!C$7="Taxable",(H109+I109)*'Client Output'!C$11,0) -> 0 | K109: 137474.1264
C110: 105 | D110: 137474.1264 | E110: 1126.492587 | F110: 0 | G110: 138600.619 | H110: =G110*('Client Output'!C$10/12) -> 750.7533529 | I110: =-(G110+H110)*('Client Output'!C$12/12) -> -174.1892154 | J110: =-IF('Client Output'!C$7="Taxable",(H110+I110)*'Client Output'!C$11,0) -> 0 | K110: 139177.1831
C111: 106 | D111: 139177.1831 | E111: 1126.492587 | F111: 0 | G111: 140303.6757 | H111: =G111*('Client Output'!C$10/12) -> 759.9782435 | I111: =-(G111+H111)*('Client Output'!C$12/12) -> -176.3295675 | J111: =-IF('Client Output'!C$7="Taxable",(H111+I111)*'Client Output'!C$11,0) -> 0 | K111: 140887.3244
C112: 107 | D112: 140887.3244 | E112: 1126.492587 | F112: 0 | G112: 142013.817 | H112: =G112*('Client Output'!C$10/12) -> 769.2415087 | I112: =-(G112+H112)*('Client Output'!C$12/12) -> -178.4788231 | J112: =-IF('Client Output'!C$7="Taxable",(H112+I112)*'Client Output'!C$11,0) -> 0 | K112: 142604.5797
C113: 108 | D113: 142604.5797 | E113: 1126.492587 | F113: 0 | G113: 143731.0723 | H113: =G113*('Client Output'!C$10/12) -> 778.5433081 | I113: =-(G113+H113)*('Client Output'!C$12/12) -> -180.6370195 | J113: =-IF('Client Output'!C$7="Taxable",(H113+I113)*'Client Output'!C$11,0) -> 0 | K113: 144328.9786
B114: ='Client Output'!C$9 -> 0.015 | C114: 109 | D114: 144328.9786 | E114: =((E$113*(1+B$114))) -> 1143.389975 | F114: 0 | G114: 145472.3685 | H114: =G114*('Client Output'!C$10/12) -> 787.9753295 | I114: =-(G114+H114)*('Client Output'!C$12/12) -> -182.8254298 | J114: =-IF('Client Output'!C$7="Taxable",(H114+I114)*'Client Output'!C$11,0) -> 0 | K114: 146077.5184
C115: 110 | D115: 146077.5184 | E115: =((E$113*(1+B$114))) -> 1143.389975 | F115: 0 | G115: 147220.9084 | H115: =G115*('Client Output'!C$10/12) -> 797.4465872 | I115: =-(G115+H115)*('Client Output'!C$12/12) -> -185.0229437 | J115: =-IF('Client Output'!C$7="Taxable",(H115+I115)*'Client Output'!C$11,0) -> 0 | K115: 147833.332
C116: 111 | D116: 147833.332 | E116: 1143.389975 | F116: 0 | G116: 148976.722 | H116: =G116*('Client Output'!C$10/12) -> 806.9572443 | I116: =-(G116+H116)*('Client Output'!C$12/12) -> -187.2295991 | J116: =-IF('Client Output'!C$7="Taxable",(H116+I116)*'Client Output'!C$11,0) -> 0 | K116: 149596.4497
C117: 112 | D117: 149596.4497 | E117: 1143.389975 | F117: 0 | G117: 150739.8396 | H117: =G117*('Client Output'!C$10/12) -> 816.5074647 | I117: =-(G117+H117)*('Client Output'!C$12/12) -> -189.4454339 | J117: =-IF('Client Output'!C$7="Taxable",(H117+I117)*'Client Output'!C$11,0) -> 0 | K117: 151366.9017
C118: 113 | D118: 151366.9017 | E118: 1143.389975 | F118: 0 | G118: 152510.2916 | H118: =G118*('Client Output'!C$10/12) -> 826.0974131 | I118: =-(G118+H118)*('Client Output'!C$12/12) -> -191.6704863 | J118: =-IF('Client Output'!C$7="Taxable",(H118+I118)*'Client Output'!C$11,0) -> 0 | K118: 153144.7186
C119: 114 | D119: 153144.7186 | E119: 1143.389975 | F119: 0 | G119: 154288.1086 | H119: =G119*('Client Output'!C$10/12) -> 835.7272546 | I119: =-(G119+H119)*('Client Output'!C$12/12) -> -193.9047948 | J119: =-IF('Client Output'!C$7="Taxable",(H119+I119)*'Client Output'!C$11,0) -> 0 | K119: 154929.931
C120: 115 | D120: 154929.931 | E120: 1143.389975 | F120: 0 | G120: 156073.321 | H120: =G120*('Client Output'!C$10/12) -> 845.3971553 | I120: =-(G120+H120)*('Client Output'!C$12/12) -> -196.1483977 | J120: =-IF('Client Output'!C$7="Taxable",(H120+I120)*'Client Output'!C$11,0) -> 0 | K120: 156722.5697
C121: 116 | D121: 156722.5697 | E121: 1143.389975 | F121: 0 | G121: 157865.9597 | H121: =G121*('Client Output'!C$10/12) -> 855.1072818 | I121: =-(G121+H121)*('Client Output'!C$12/12) -> -198.4013338 | J121: =-IF('Client Output'!C$7="Taxable",(H121+I121)*'Client Output'!C$11,0) -> 0 | K121: 158522.6657
C122: 117 | D122: 158522.6657 | E122: 1143.389975 | F122: 0 | G122: 159666.0556 | H122: =G122*('Client Output'!C$10/12) -> 864.8578014 | I122: =-(G122+H122)*('Client Output'!C$12/12) -> -200.6636418 | J122: =-IF('Client Output'!C$7="Taxable",(H122+I122)*'Client Output'!C$11,0) -> 0 | K122: 160330.2498
C123: 118 | D123: 160330.2498 | E123: 1143.389975 | F123: 0 | G123: 161473.6398 | H123: =G123*('Client Output'!C$10/12) -> 874.6488821 | I123: =-(G123+H123)*('Client Output'!C$12/12) -> -202.9353608 | J123: =-IF('Client Output'!C$7="Taxable",(H123+I123)*'Client Output'!C$11,0) -> 0 | K123: 162145.3533
C124: 119 | D124: 162145.3533 | E124: 1143.389975 | F124: 0 | G124: 163288.7433 | H124: =G124*('Client Output'!C$10/12) -> 884.4806927 | I124: =-(G124+H124)*('Client Output'!C$12/12) -> -205.21653 | J124: =-IF('Client Output'!C$7="Taxable",(H124+I124)*'Client Output'!C$11,0) -> 0 | K124: 163968.0074
C125: 120 | D125: 163968.0074 | E125: 1143.389975 | F125: 0 | G125: 165111.3974 | H125: =G125*('Client Output'!C$10/12) -> 894.3534026 | I125: =-(G125+H125)*('Client Output'!C$12/12) -> -207.5071885 | J125: =-IF('Client Output'!C$7="Taxable",(H125+I125)*'Client Output'!C$11,0) -> 0 | K125: 165798.2436
B126: ='Client Output'!C$9 -> 0.015 | C126: 121 | D126: 165798.2436 | E126: =((E$125*(1+B$126))) -> 1160.540825 | F126: 0 | G126: 166958.7845 | H126: =G126*('Client Output'!C$10/12) -> 904.3600824 | I126: =-(G126+H126)*('Client Output'!C$12/12) -> -209.8289307 | J126: =-IF('Client Output'!C$7="Taxable",(H126+I126)*'Client Output'!C$11,0) -> 0 | K126: 167653.3156
C127: 122 | D127: 167653.3156 | E127: =((E$125*(1+B$126))) -> 1160.540825 | F127: 0 | G127: 168813.8564 | H127: =G127*('Client Output'!C$10/12) -> 914.408389 | I127: =-(G127+H127)*('Client Output'!C$12/12) -> -212.160331 | J127: =-IF('Client Output'!C$7="Taxable",(H127+I127)*'Client Output'!C$11,0) -> 0 | K127: 169516.1045
C128: 123 | D128: 169516.1045 | E128: 1160.540825 | F128: 0 | G128: 170676.6453 | H128: =G128*('Client Output'!C$10/12) -> 924.4984954 | I128: =-(G128+H128)*('Client Output'!C$12/12) -> -214.5014298 | J128: =-IF('Client Output'!C$7="Taxable",(H128+I128)*'Client Output'!C$11,0) -> 0 | K128: 171386.6424
C129: 124 | D129: 171386.6424 | E129: 1160.540825 | F129: 0 | G129: 172547.1832 | H129: =G129*('Client Output'!C$10/12) -> 934.6305757 | I129: =-(G129+H129)*('Client Output'!C$12/12) -> -216.8522672 | J129: =-IF('Client Output'!C$7="Taxable",(H129+I129)*'Client Output'!C$11,0) -> 0 | K129: 173264.9615
C130: 125 | D130: 173264.9615 | E130: 1160.540825 | F130: 0 | G130: 174425.5023 | H130: =G130*('Client Output'!C$10/12) -> 944.8048043 | I130: =-(G130+H130)*('Client Output'!C$12/12) -> -219.2128839 | J130: =-IF('Client Output'!C$7="Taxable",(H130+I130)*'Client Output'!C$11,0) -> 0 | K130: 175151.0943
C131: 126 | D131: 175151.0943 | E131: 1160.540825 | F131: 0 | G131: 176311.6351 | H131: =G131*('Client Output'!C$10/12) -> 955.0213567 | I131: =-(G131+H131)*('Client Output'!C$12/12) -> -221.5833205 | J131: =-IF('Client Output'!C$7="Taxable",(H131+I131)*'Client Output'!C$11,0) -> 0 | K131: 177045.0731
C132: 127 | D132: 177045.0731 | E132: 1160.540825 | F132: 0 | G132: 178205.6139 | H132: =G132*('Client Output'!C$10/12) -> 965.2804089 | I132: =-(G132+H132)*('Client Output'!C$12/12) -> -223.9636179 | J132: =-IF('Client Output'!C$7="Taxable",(H132+I132)*'Client Output'!C$11,0) -> 0 | K132: 178946.9307
C133: 128 | D133: 178946.9307 | E133: 1160.540825 | F133: 0 | G133: 180107.4716 | H133: =G133*('Client Output'!C$10/12) -> 975.5821376 | I133: =-(G133+H133)*('Client Output'!C$12/12) -> -226.3538171 | J133: =-IF('Client Output'!C$7="Taxable",(H133+I133)*'Client Output'!C$11,0) -> 0 | K133: 180856.6999
C134: 129 | D134: 180856.6999 | E134: 1160.540825 | F134: 0 | G134: 182017.2407 | H134: =G134*('Client Output'!C$10/12) -> 985.9267205 | I134: =-(G134+H134)*('Client Output'!C$12/12) -> -228.7539593 | J134: =-IF('Client Output'!C$7="Taxable",(H134+I134)*'Client Output'!C$11,0) -> 0 | K134: 182774.4135
C135: 130 | D135: 182774.4135 | E135: 1160.540825 | F135: =E135*D$1 -> 0 | G135: 183934.9543 | H135: =G135*('Client Output'!C$10/12) -> 996.3143357 | I135: =-(G135+H135)*('Client Output'!C$12/12) -> -231.1640858 | J135: =-IF('Client Output'!C$7="Taxable",(H135+I135)*'Client Output'!C$11,0) -> 0 | K135: 184700.1045
C136: =C135+1 -> 131 | D136: 184700.1045 | E136: 1160.540825 | F136: 0 | G136: 185860.6454 | H136: =G136*('Client Output'!C$10/12) -> 1006.745162 | I136: =-(G136+H136)*('Client Output'!C$12/12) -> -233.5842382 | J136: =-IF('Client Output'!C$7="Taxable",(H136+I136)*'Client Output'!C$11,0) -> 0 | K136: 186633.8063
C137: 132 | D137: 186633.8063 | E137: 1160.540825 | F137: 0 | G137: 187794.3471 | H137: =G137*('Client Output'!C$10/12) -> 1017.21938 | I137: =-(G137+H137)*('Client Output'!C$12/12) -> -236.0144581 | J137: =-IF('Client Output'!C$7="Taxable",(H137+I137)*'Client Output'!C$11,0) -> 0 | K137: 188575.552
B138: ='Client Output'!C$9 -> 0.015 | C138: 133 | D138: 188575.552 | E138: =((E$137*(1+B$138))) -> 1177.948937 | F138: 0 | G138: 189753.501 | H138: =G138*('Client Output'!C$10/12) -> 1027.831464 | I138: =-(G138+H138)*('Client Output'!C$12/12) -> -238.4766655 | J138: =-IF('Client Output'!C$7="Taxable",(H138+I138)*'Client Output'!C$11,0) -> 0 | K138: 190542.8558
C139: 134 | D139: 190542.8558 | E139: =((E$137*(1+B$138))) -> 1177.948937 | F139: 0 | G139: 191720.8047 | H139: =G139*('Client Output'!C$10/12) -> 1038.487692 | I139: =-(G139+H139)*('Client Output'!C$12/12) -> -240.9491155 | J139: =-IF('Client Output'!C$7="Taxable",(H139+I139)*'Client Output'!C$11,0) -> 0 | K139: 192518.3433
C140: 135 | D140: 192518.3433 | E140: 1177.948937 | F140: 0 | G140: 193696.2922 | H140: =G140*('Client Output'!C$10/12) -> 1049.18825 | I140: =-(G140+H140)*('Client Output'!C$12/12) -> -243.4318506 | J140: =-IF('Client Output'!C$7="Taxable",(H140+I140)*'Client Output'!C$11,0) -> 0 | K140: 194502.0486
C141: 136 | D141: 194502.0486 | E141: 1177.948937 | F141: 0 | G141: 195679.9976 | H141: =G141*('Client Output'!C$10/12) -> 1059.93332 | I141: =-(G141+H141)*('Client Output'!C$12/12) -> -245.9249136 | J141: =-IF('Client Output'!C$7="Taxable",(H141+I141)*'Client Output'!C$11,0) -> 0 | K141: 196494.006
C142: 137 | D142: 196494.006 | E142: 1177.948937 | F142: 0 | G142: 197671.9549 | H142: =G142*('Client Output'!C$10/12) -> 1070.723089 | I142: =-(G142+H142)*('Client Output'!C$12/12) -> -248.4283475 | J142: =-IF('Client Output'!C$7="Taxable",(H142+I142)*'Client Output'!C$11,0) -> 0 | K142: 198494.2496
C143: 138 | D143: 198494.2496 | E143: 1177.948937 | F143: 0 | G143: 199672.1986 | H143: =G143*('Client Output'!C$10/12) -> 1081.557742 | I143: =-(G143+H143)*('Client Output'!C$12/12) -> -250.9421954 | J143: =-IF('Client Output'!C$7="Taxable",(H143+I143)*'Client Output'!C$11,0) -> 0 | K143: 200502.8141
C144: 139 | D144: 200502.8141 | E144: 1177.948937 | F144: 0 | G144: 201680.7631 | H144: =G144*('Client Output'!C$10/12) -> 1092.437467 | I144: =-(G144+H144)*('Client Output'!C$12/12) -> -253.4665007 | J144: =-IF('Client Output'!C$7="Taxable",(H144+I144)*'Client Output'!C$11,0) -> 0 | K144: 202519.734
C145: 140 | D145: 202519.734 | E145: 1177.948937 | F145: 0 | G145: 203697.683 | H145: =G145*('Client Output'!C$10/12) -> 1103.362449 | I145: =-(G145+H145)*('Client Output'!C$12/12) -> -256.0013068 | J145: =-IF('Client Output'!C$7="Taxable",(H145+I145)*'Client Output'!C$11,0) -> 0 | K145: 204545.0441
C146: 141 | D146: =K145 -> 204545.0441 | E146: 1177.948937 | F146: 0 | G146: 205722.993 | H146: =G146*('Client Output'!C$10/12) -> 1114.332879 | I146: =-(G146+H146)*('Client Output'!C$12/12) -> -258.5466574 | J146: =-IF('Client Output'!C$7="Taxable",(H146+I146)*'Client Output'!C$11,0) -> 0 | K146: 206578.7793
C147: 142 | D147: 206578.7793 | E147: 1177.948937 | F147: 0 | G147: =D147+E147+F147 -> 207756.7282 | H147: =G147*('Client Output'!C$10/12) -> 1125.348944 | I147: =-(G147+H147)*('Client Output'!C$12/12) -> -261.1025964 | J147: =-IF('Client Output'!C$7="Taxable",(H147+I147)*'Client Output'!C$11,0) -> 0 | K147: =G147+H147+I147+J147 -> 208620.9746
C148: 143 | D148: 208620.9746 | E148: 1177.948937 | F148: 0 | G148: 209798.9235 | H148: =G148*('Client Output'!C$10/12) -> 1136.410836 | I148: =-(G148+H148)*('Client Output'!C$12/12) -> -263.6691679 | J148: =-IF('Client Output'!C$7="Taxable",(H148+I148)*'Client Output'!C$11,0) -> 0 | K148: 210671.6652
C149: 144 | D149: 210671.6652 | E149: 1177.948937 | F149: 0 | G149: 211849.6141 | H149: =G149*('Client Output'!C$10/12) -> 1147.518743 | I149: =-(G149+H149)*('Client Output'!C$12/12) -> -266.2464161 | J149: =-IF('Client Output'!C$7="Taxable",(H149+I149)*'Client Output'!C$11,0) -> 0 | K149: 212730.8864
B150: ='Client Output'!C$9 -> 0.015 | C150: 145 | D150: 212730.8864 | E150: =((E$149*(1+B$150))) -> 1195.618171 | F150: 0 | G150: 213926.5046 | H150: =G150*('Client Output'!C$10/12) -> 1158.768567 | I150: =-(G150+H150)*('Client Output'!C$12/12) -> -268.8565915 | J150: =-IF('Client Output'!C$7="Taxable",(H150+I150)*'Client Output'!C$11,0) -> 0 | K150: 214816.4166
C151: 146 | D151: 214816.4166 | E151: =((E$149*(1+B$150))) -> 1195.618171 | F151: 0 | G151: 216012.0347 | H151: =G151*('Client Output'!C$10/12) -> 1170.065188 | I151: =-(G151+H151)*('Client Output'!C$12/12) -> -271.4776249 | J151: =-IF('Client Output'!C$7="Taxable",(H151+I151)*'Client Output'!C$11,0) -> 0 | K151: 216910.6223
C152: 147 | D152: 216910.6223 | E152: 1195.618171 | F152: 0 | G152: 218106.2405 | H152: =G152*('Client Output'!C$10/12) -> 1181.408803 | I152: =-(G152+H152)*('Client Output'!C$12/12) -> -274.1095616 | J152: =-IF('Client Output'!C$7="Taxable",(H152+I152)*'Client Output'!C$11,0) -> 0 | K152: 219013.5397
C153: 148 | D153: 219013.5397 | E153: 1195.618171 | F153: 0 | G153: 220209.1579 | H153: =G153*('Client Output'!C$10/12) -> 1192.799605 | I153: =-(G153+H153)*('Client Output'!C$12/12) -> -276.7524469 | J153: =-IF('Client Output'!C$7="Taxable",(H153+I153)*'Client Output'!C$11,0) -> 0 | K153: 221125.205
C154: 149 | D154: 221125.205 | E154: 1195.618171 | F154: 0 | G154: 222320.8232 | H154: =G154*('Client Output'!C$10/12) -> 1204.237792 | I154: =-(G154+H154)*('Client Output'!C$12/12) -> -279.4063263 | J154: =-IF('Client Output'!C$7="Taxable",(H154+I154)*'Client Output'!C$11,0) -> 0 | K154: 223245.6547
C155: 150 | D155: 223245.6547 | E155: 1195.618171 | F155: 0 | G155: 224441.2729 | H155: =G155*('Client Output'!C$10/12) -> 1215.723561 | I155: =-(G155+H155)*('Client Output'!C$12/12) -> -282.0712455 | J155: =-IF('Client Output'!C$7="Taxable",(H155+I155)*'Client Output'!C$11,0) -> 0 | K155: 225374.9252
C156: 151 | D156: 225374.9252 | E156: 1195.618171 | F156: 0 | G156: 226570.5433 | H156: =G156*('Client Output'!C$10/12) -> 1227.25711 | I156: =-(G156+H156)*('Client Output'!C$12/12) -> -284.7472506 | J156: =-IF('Client Output'!C$7="Taxable",(H156+I156)*'Client Output'!C$11,0) -> 0 | K156: 227513.0532
C157: 152 | D157: 227513.0532 | E157: 1195.618171 | F157: 0 | G157: 228708.6714 | H157: =G157*('Client Output'!C$10/12) -> 1238.838637 | I157: =-(G157+H157)*('Client Output'!C$12/12) -> -287.4343875 | J157: =-IF('Client Output'!C$7="Taxable",(H157+I157)*'Client Output'!C$11,0) -> 0 | K157: 229660.0756
C158: 153 | D158: 229660.0756 | E158: 1195.618171 | F158: 0 | G158: 230855.6938 | H158: =G158*('Client Output'!C$10/12) -> 1250.468341 | I158: =-(G158+H158)*('Client Output'!C$12/12) -> -290.1327027 | J158: =-IF('Client Output'!C$7="Taxable",(H158+I158)*'Client Output'!C$11,0) -> 0 | K158: 231816.0294
C159: 154 | D159: 231816.0294 | E159: 1195.618171 | F159: 0 | G159: 233011.6476 | H159: =G159*('Client Output'!C$10/12) -> 1262.146425 | I159: =-(G159+H159)*('Client Output'!C$12/12) -> -292.8422425 | J159: =-IF('Client Output'!C$7="Taxable",(H159+I159)*'Client Output'!C$11,0) -> 0 | K159: 233980.9518
C160: 155 | D160: 233980.9518 | E160: 1195.618171 | F160: 0 | G160: 235176.57 | H160: =G160*('Client Output'!C$10/12) -> 1273.873087 | I160: =-(G160+H160)*('Client Output'!C$12/12) -> -295.5630538 | J160: =-IF('Client Output'!C$7="Taxable",(H160+I160)*'Client Output'!C$11,0) -> 0 | K160: 236154.88
C161: 156 | D161: 236154.88 | E161: 1195.618171 | F161: 0 | G161: 237350.4982 | H161: =G161*('Client Output'!C$10/12) -> 1285.648532 | I161: =-(G161+H161)*('Client Output'!C$12/12) -> -298.2951834 | J161: =-IF('Client Output'!C$7="Taxable",(H161+I161)*'Client Output'!C$11,0) -> 0 | K161: 238337.8515
B162: ='Client Output'!C$9 -> 0.015 | C162: 157 | D162: 238337.8515 | E162: =((E$161*(1+B$162))) -> 1213.552444 | F162: 0 | G162: 239551.404 | H162: =G162*('Client Output'!C$10/12) -> 1297.570105 | I162: =-(G162+H162)*('Client Output'!C$12/12) -> -301.0612176 | J162: =-IF('Client Output'!C$7="Taxable",(H162+I162)*'Client Output'!C$11,0) -> 0 | K162: 240547.9128
C163: 158 | D163: 240547.9128 | E163: =((E$161*(1+B$162))) -> 1213.552444 | F163: 0 | G163: 241761.4653 | H163: =G163*('Client Output'!C$10/12) -> 1309.54127 | I163: =-(G163+H163)*('Client Output'!C$12/12) -> -303.8387582 | J163: =-IF('Client Output'!C$7="Taxable",(H163+I163)*'Client Output'!C$11,0) -> 0 | K163: 242767.1678
C164: 159 | D164: 242767.1678 | E164: 1213.552444 | F164: 0 | G164: 243980.7202 | H164: =G164*('Client Output'!C$10/12) -> 1321.562235 | I164: =-(G164+H164)*('Client Output'!C$12/12) -> -306.6278531 | J164: =-IF('Client Output'!C$7="Taxable",(H164+I164)*'Client Output'!C$11,0) -> 0 | K164: 244995.6546
C165: 160 | D165: 244995.6546 | E165: 1213.552444 | F165: 0 | G165: 246209.2071 | H165: =G165*('Client Output'!C$10/12) -> 1333.633205 | I165: =-(G165+H165)*('Client Output'!C$12/12) -> -309.4285503 | J165: =-IF('Client Output'!C$7="Taxable",(H165+I165)*'Client Output'!C$11,0) -> 0 | K165: 247233.4117
C166: 161 | D166: 247233.4117 | E166: 1213.552444 | F166: 0 | G166: 248446.9642 | H166: =G166*('Client Output'!C$10/12) -> 1345.754389 | I166: =-(G166+H166)*('Client Output'!C$12/12) -> -312.2408982 | J166: =-IF('Client Output'!C$7="Taxable",(H166+I166)*'Client Output'!C$11,0) -> 0 | K166: 249480.4777
C167: 162 | D167: 249480.4777 | E167: 1213.552444 | F167: 0 | G167: 250694.0301 | H167: =G167*('Client Output'!C$10/12) -> 1357.925996 | I167: =-(G167+H167)*('Client Output'!C$12/12) -> -315.0649451 | J167: =-IF('Client Output'!C$7="Taxable",(H167+I167)*'Client Output'!C$11,0) -> 0 | K167: 251736.8912
C168: 163 | D168: 251736.8912 | E168: 1213.552444 | F168: 0 | G168: 252950.4436 | H168: =G168*('Client Output'!C$10/12) -> 1370.148236 | I168: =-(G168+H168)*('Client Output'!C$12/12) -> -317.9007398 | J168: =-IF('Client Output'!C$7="Taxable",(H168+I168)*'Client Output'!C$11,0) -> 0 | K168: 254002.6911
C169: 164 | D169: 254002.6911 | E169: 1213.552444 | F169: 0 | G169: 255216.2435 | H169: =G169*('Client Output'!C$10/12) -> 1382.421319 | I169: =-(G169+H169)*('Client Output'!C$12/12) -> -320.7483311 | J169: =-IF('Client Output'!C$7="Taxable",(H169+I169)*'Client Output'!C$11,0) -> 0 | K169: 256277.9165
C170: 165 | D170: 256277.9165 | E170: 1213.552444 | F170: 0 | G170: 257491.469 | H170: =G170*('Client Output'!C$10/12) -> 1394.745457 | I170: =-(G170+H170)*('Client Output'!C$12/12) -> -323.607768 | J170: =-IF('Client Output'!C$7="Taxable",(H170+I170)*'Client Output'!C$11,0) -> 0 | K170: 258562.6067
C171: 166 | D171: 258562.6067 | E171: 1213.552444 | F171: 0 | G171: 259776.1591 | H171: =G171*('Client Output'!C$10/12) -> 1407.120862 | I171: =-(G171+H171)*('Client Output'!C$12/12) -> -326.4791 | J171: =-IF('Client Output'!C$7="Taxable",(H171+I171)*'Client Output'!C$11,0) -> 0 | K171: 260856.8009
C172: 167 | D172: 260856.8009 | E172: 1213.552444 | F172: 0 | G172: 262070.3533 | H172: =G172*('Client Output'!C$10/12) -> 1419.547747 | I172: =-(G172+H172)*('Client Output'!C$12/12) -> -329.3623763 | J172: =-IF('Client Output'!C$7="Taxable",(H172+I172)*'Client Output'!C$11,0) -> 0 | K172: 263160.5387
C173: 168 | D173: 263160.5387 | E173: 1213.552444 | F173: 0 | G173: 264374.0911 | H173: =G173*('Client Output'!C$10/12) -> 1432.026327 | I173: =-(G173+H173)*('Client Output'!C$12/12) -> -332.2576468 | J173: =-IF('Client Output'!C$7="Taxable",(H173+I173)*'Client Output'!C$11,0) -> 0 | K173: 265473.8598
B174: ='Client Output'!C$9 -> 0.015 | C174: 169 | D174: 265473.8598 | E174: =((E$173*(1+B$174))) -> 1231.755731 | F174: 0 | G174: 266705.6155 | H174: =G174*('Client Output'!C$10/12) -> 1444.655417 | I174: =-(G174+H174)*('Client Output'!C$12/12) -> -335.1878387 | J174: =-IF('Client Output'!C$7="Taxable",(H174+I174)*'Client Output'!C$11,0) -> 0 | K174: 267815.0831
C175: 170 | D175: 267815.0831 | E175: =((E$173*(1+B$174))) -> 1231.755731 | F175: 0 | G175: 269046.8388 | H175: =G175*('Client Output'!C$10/12) -> 1457.337044 | I175: =-(G175+H175)*('Client Output'!C$12/12) -> -338.1302199 | J175: =-IF('Client Output'!C$7="Taxable",(H175+I175)*'Client Output'!C$11,0) -> 0 | K175: 270166.0457
C176: 171 | D176: 270166.0457 | E176: 1231.755731 | F176: 0 | G176: 271397.8014 | H176: =G176*('Client Output'!C$10/12) -> 1470.071424 | I176: =-(G176+H176)*('Client Output'!C$12/12) -> -341.084841 | J176: =-IF('Client Output'!C$7="Taxable",(H176+I176)*'Client Output'!C$11,0) -> 0 | K176: 272526.788
C177: 172 | D177: 272526.788 | E177: 1231.755731 | F177: 0 | G177: 273758.5437 | H177: =G177*('Client Output'!C$10/12) -> 1482.858778 | I177: =-(G177+H177)*('Client Output'!C$12/12) -> -344.0517531 | J177: =-IF('Client Output'!C$7="Taxable",(H177+I177)*'Client Output'!C$11,0) -> 0 | K177: 274897.3507
C178: 173 | D178: 274897.3507 | E178: 1231.755731 | F178: 0 | G178: 276129.1065 | H178: =G178*('Client Output'!C$10/12) -> 1495.699327 | I178: =-(G178+H178)*('Client Output'!C$12/12) -> -347.0310072 | J178: =-IF('Client Output'!C$7="Taxable",(H178+I178)*'Client Output'!C$11,0) -> 0 | K178: 277277.7748
C179: 174 | D179: 277277.7748 | E179: 1231.755731 | F179: 0 | G179: 278509.5305 | H179: =G179*('Client Output'!C$10/12) -> 1508.59329 | I179: =-(G179+H179)*('Client Output'!C$12/12) -> -350.0226548 | J179: =-IF('Client Output'!C$7="Taxable",(H179+I179)*'Client Output'!C$11,0) -> 0 | K179: 279668.1012
C180: 175 | D180: 279668.1012 | E180: 1231.755731 | F180: 0 | G180: 280899.8569 | H180: =G180*('Client Output'!C$10/12) -> 1521.540891 | I180: =-(G180+H180)*('Client Output'!C$12/12) -> -353.0267472 | J180: =-IF('Client Output'!C$7="Taxable",(H180+I180)*'Client Output'!C$11,0) -> 0 | K180: 282068.371
C181: 176 | D181: 282068.371 | E181: 1231.755731 | F181: 0 | G181: 283300.1268 | H181: =G181*('Client Output'!C$10/12) -> 1534.542353 | I181: =-(G181+H181)*('Client Output'!C$12/12) -> -356.0433364 | J181: =-IF('Client Output'!C$7="Taxable",(H181+I181)*'Client Output'!C$11,0) -> 0 | K181: 284478.6258
C182: 177 | D182: 284478.6258 | E182: 1231.755731 | F182: 0 | G182: 285710.3815 | H182: =G182*('Client Output'!C$10/12) -> 1547.5979 | I182: =-(G182+H182)*('Client Output'!C$12/12) -> -359.0724743 | J182: =-IF('Client Output'!C$7="Taxable",(H182+I182)*'Client Output'!C$11,0) -> 0 | K182: 286898.9069
C183: 178 | D183: 286898.9069 | E183: 1231.755731 | F183: 0 | G183: 288130.6627 | H183: =G183*('Client Output'!C$10/12) -> 1560.707756 | I183: =-(G183+H183)*('Client Output'!C$12/12) -> -362.114213 | J183: =-IF('Client Output'!C$7="Taxable",(H183+I183)*'Client Output'!C$11,0) -> 0 | K183: 289329.2562
C184: 179 | D184: 289329.2562 | E184: 1231.755731 | F184: 0 | G184: 290561.0119 | H184: =G184*('Client Output'!C$10/12) -> 1573.872148 | I184: =-(G184+H184)*('Client Output'!C$12/12) -> -365.1686051 | J184: =-IF('Client Output'!C$7="Taxable",(H184+I184)*'Client Output'!C$11,0) -> 0 | K184: 291769.7155
C185: 180 | D185: 291769.7155 | E185: 1231.755731 | F185: 0 | G185: 293001.4712 | H185: =G185*('Client Output'!C$10/12) -> 1587.091302 | I185: =-(G185+H185)*('Client Output'!C$12/12) -> -368.2357031 | J185: =-IF('Client Output'!C$7="Taxable",(H185+I185)*'Client Output'!C$11,0) -> 0 | K185: 294220.3268
B186: ='Client Output'!C$9 -> 0.015 | C186: 181 | D186: 294220.3268 | E186: =((E$185*(1+B$186))) -> 1250.232067 | F186: 0 | G186: 295470.5589 | H186: =G186*('Client Output'!C$10/12) -> 1600.465527 | I186: =-(G186+H186)*('Client Output'!C$12/12) -> -371.3387805 | J186: =-IF('Client Output'!C$7="Taxable",(H186+I186)*'Client Output'!C$11,0) -> 0 | K186: 296699.6856
C187: 182 | D187: 296699.6856 | E187: =((E$185*(1+B$186))) -> 1250.232067 | F187: 0 | G187: 297949.9177 | H187: =G187*('Client Output'!C$10/12) -> 1613.895388 | I187: =-(G187+H187)*('Client Output'!C$12/12) -> -374.4547664 | J187: =-IF('Client Output'!C$7="Taxable",(H187+I187)*'Client Output'!C$11,0) -> 0 | K187: 299189.3583
C188: 183 | D188: 299189.3583 | E188: 1250.232067 | F188: 0 | G188: 300439.5904 | H188: =G188*('Client Output'!C$10/12) -> 1627.381115 | I188: =-(G188+H188)*('Client Output'!C$12/12) -> -377.5837144 | J188: =-IF('Client Output'!C$7="Taxable",(H188+I188)*'Client Output'!C$11,0) -> 0 | K188: 301689.3878
C189: 184 | D189: 301689.3878 | E189: 1250.232067 | F189: 0 | G189: 302939.6198 | H189: =G189*('Client Output'!C$10/12) -> 1640.922941 | I189: =-(G189+H189)*('Client Output'!C$12/12) -> -380.7256785 | J189: =-IF('Client Output'!C$7="Taxable",(H189+I189)*'Client Output'!C$11,0) -> 0 | K189: 304199.8171
C190: 185 | D190: 304199.8171 | E190: 1250.232067 | F190: 0 | G190: 305450.0492 | H190: =G190*('Client Output'!C$10/12) -> 1654.5211 | I190: =-(G190+H190)*('Client Output'!C$12/12) -> -383.8807128 | J190: =-IF('Client Output'!C$7="Taxable",(H190+I190)*'Client Output'!C$11,0) -> 0 | K190: 306720.6896
C191: 186 | D191: 306720.6896 | E191: 1250.232067 | F191: 0 | G191: 307970.9216 | H191: =G191*('Client Output'!C$10/12) -> 1668.175825 | I191: =-(G191+H191)*('Client Output'!C$12/12) -> -387.0488718 | J191: =-IF('Client Output'!C$7="Taxable",(H191+I191)*'Client Output'!C$11,0) -> 0 | K191: 309252.0486
C192: 187 | D192: 309252.0486 | E192: 1250.232067 | F192: 0 | G192: 310502.2807 | H192: =G192*('Client Output'!C$10/12) -> 1681.887354 | I192: =-(G192+H192)*('Client Output'!C$12/12) -> -390.23021 | J192: =-IF('Client Output'!C$7="Taxable",(H192+I192)*'Client Output'!C$11,0) -> 0 | K192: 311793.9378
C193: 188 | D193: 311793.9378 | E193: 1250.232067 | F193: 0 | G193: 313044.1699 | H193: =G193*('Client Output'!C$10/12) -> 1695.65592 | I193: =-(G193+H193)*('Client Output'!C$12/12) -> -393.4247822 | J193: =-IF('Client Output'!C$7="Taxable",(H193+I193)*'Client Output'!C$11,0) -> 0 | K193: 314346.401
C194: 189 | D194: 314346.401 | E194: 1250.232067 | F194: 0 | G194: 315596.6331 | H194: =G194*('Client Output'!C$10/12) -> 1709.481762 | I194: =-(G194+H194)*('Client Output'!C$12/12) -> -396.6326435 | J194: =-IF('Client Output'!C$7="Taxable",(H194+I194)*'Client Output'!C$11,0) -> 0 | K194: 316909.4822
C195: 190 | D195: 316909.4822 | E195: 1250.232067 | F195: 0 | G195: 318159.7143 | H195: =G195*('Client Output'!C$10/12) -> 1723.365119 | I195: =-(G195+H195)*('Client Output'!C$12/12) -> -399.8538492 | J195: =-IF('Client Output'!C$7="Taxable",(H195+I195)*'Client Output'!C$11,0) -> 0 | K195: 319483.2255
C196: 191 | D196: 319483.2255 | E196: 1250.232067 | F196: 0 | G196: 320733.4576 | H196: =G196*('Client Output'!C$10/12) -> 1737.306229 | I196: =-(G196+H196)*('Client Output'!C$12/12) -> -403.0884548 | J196: =-IF('Client Output'!C$7="Taxable",(H196+I196)*'Client Output'!C$11,0) -> 0 | K196: 322067.6754
C197: 192 | D197: 322067.6754 | E197: 1250.232067 | F197: 0 | G197: 323317.9074 | H197: =G197*('Client Output'!C$10/12) -> 1751.305332 | I197: =-(G197+H197)*('Client Output'!C$12/12) -> -406.3365159 | J197: =-IF('Client Output'!C$7="Taxable",(H197+I197)*'Client Output'!C$11,0) -> 0 | K197: 324662.8762
B198: ='Client Output'!C$9 -> 0.015 | C198: 193 | D198: 324662.8762 | E198: =((E$197*(1+B$198))) -> 1268.985548 | F198: 0 | G198: 325931.8618 | H198: =G198*('Client Output'!C$10/12) -> 1765.464251 | I198: =-(G198+H198)*('Client Output'!C$12/12) -> -409.6216576 | J198: =-IF('Client Output'!C$7="Taxable",(H198+I198)*'Client Output'!C$11,0) -> 0 | K198: 327287.7044
C199: 194 | D199: 327287.7044 | E199: =((E$197*(1+B$198))) -> 1268.985548 | F199: =E199*D$1 -> 0 | G199: 328556.6899 | H199: =G199*('Client Output'!C$10/12) -> 1779.68207 | I199: =-(G199+H199)*('Client Output'!C$12/12) -> -412.920465 | J199: =-IF('Client Output'!C$7="Taxable",(H199+I199)*'Client Output'!C$11,0) -> 0 | K199: 329923.4515
C200: =C199+1 -> 195 | D200: 329923.4515 | E200: 1268.985548 | F200: 0 | G200: 331192.4371 | H200: =G200*('Client Output'!C$10/12) -> 1793.959034 | I200: =-(G200+H200)*('Client Output'!C$12/12) -> -416.2329952 | J200: =-IF('Client Output'!C$7="Taxable",(H200+I200)*'Client Output'!C$11,0) -> 0 | K200: 332570.1631
C201: 196 | D201: 332570.1631 | E201: 1268.985548 | F201: 0 | G201: 333839.1487 | H201: =G201*('Client Output'!C$10/12) -> 1808.295389 | I201: =-(G201+H201)*('Client Output'!C$12/12) -> -419.5593051 | J201: =-IF('Client Output'!C$7="Taxable",(H201+I201)*'Client Output'!C$11,0) -> 0 | K201: 335227.8848
C202: 197 | D202: 335227.8848 | E202: 1268.985548 | F202: 0 | G202: 336496.8703 | H202: =G202*('Client Output'!C$10/12) -> 1822.691381 | I202: =-(G202+H202)*('Client Output'!C$12/12) -> -422.8994521 | J202: =-IF('Client Output'!C$7="Taxable",(H202+I202)*'Client Output'!C$11,0) -> 0 | K202: 337896.6622
... 403 more rows
